[Event "10th Cesme Open-A 2024"]
[Site "Cesme"]
[Date "2024.06.24"]
[Round "2"]
[White "Pacher, Milan"]
[Black "Abbasi Abeluie, Mohammad Mehdi"]
[Result "1-0"]
[ECO "B11"]
[WhiteElo "2387"]
[BlackElo "2079"]
[Annotator "RC"]
[PlyCount "77"]
[EventDate "2024.06.23"]
[EventType "swiss"]
[EventCountry "TUR"]
[SourceTitle "playchess.com"]
[Source "ChessBase"]
[SourceQuality "1"]
[TimeControl "5400+30"]

1. e4 {[%emt 0:01:00]} c6 {[%emt 0:01:00]} 2. Nf3 {[%emt 0:00:30]} d5 {[%emt 0:00:30]} 3. Nc3 {[%emt 0:00:00]} Bg4 {[%emt 0:00:30]} 4. h3 {[%emt 0:00:00]} Bxf3 {[%emt 0:00:00]} 5. Qxf3 {[%emt 0:00:00]} e6 {[%emt 0:00:00]} 6. d4 {[%emt 0:00:00]} Nf6 {[%emt 0:00:30]} 7. Bd3 {[%emt 0:00:30]} Be7 {[%emt 0:00:30]} 8. O-O {[%emt 0:00:00]} O-O {[%emt 0:05:30]} 9. e5 {[%emt 0:00:00]} Nfd7 {[%emt 0:00:30]} 10. Ne2 {[%emt 0:00:30]} c5 {[%emt 0:00:30]} 11. c3 {[%emt 0:00:00]} Nc6 {[%emt 0:01:30]} 12. Be3 {[%emt 0:07:00]} g6 {[%emt 0:07:30]} 13. Rad1 {[%emt 0:01:30]} Rc8 {[%emt 0:00:30]} 14. Bb1 {[%emt 0:10:30]} b5 {[%emt 0:03:30]} 15. Bh6 {[%emt 0:03:30]} Re8 {[%emt 0:00:30]} 16. Qf4 {[%emt 0:00:30]} cxd4 {[%emt 0:32:30]} 17. cxd4 {[%emt 0:00:30]} f5 {[%emt 0:00:30]} 18. g4 {[%emt 0:02:30]} Bf8 {[%emt 0:01:30]} 19. gxf5 {[%emt 0:00:30]} exf5 {[%emt 0:02:30]} 20. Nc3 {[%emt 0:01:30]} Bxh6 {[%emt 0:03:30]} 21. Qxh6 {[%emt 0:00:30]} Nf8 {[%emt 0:00:00]} 22. Nxb5 {[%emt 0:00:30]} Rb8 {[%emt 0:00:00]} 23. Nd6 {[%emt 0:01:30]} Re7 {[%emt 0:00:00]} 24. a3 {[%emt 0:06:30]} Rc7 {[%emt 0:01:00]} 25. b4 {[%emt 0:01:30]} Ne7 {[%emt 0:00:30]} 26. Rc1 {[%emt 0:02:30]} Ne6 {[%emt 0:01:30]} 27. Nxf5 {[%emt 0:00:30]} Nxf5 {[%emt 0:00:30]} 28. Bxf5 {[%emt 0:00:30]} Nxd4 {[%emt 0:00:30]} 29. Bg4 {[%emt 0:00:00]} Rf7 {[%emt 0:11:30]} 30. e6 {[%emt 0:01:00]} Rf6 {[%emt 0:00:30]} 31. Qe3 {[%emt 0:01:30]} Nf5 {[%emt 0:00:30]} 32. Qe5 {[%emt 0:01:30]} Rb6 {[%emt 0:00:30]} 33. e7 {[%emt 0:06:30]} Nxe7 {[%emt 0:00:30]} 34. Rc7 {[%emt 0:01:30]} Nc6 {[%emt 0:01:30]} 35. Qg3 {[%emt 0:01:30]} Nd4 {[%emt 0:01:30]} 36. Re1 {[%emt 0:01:30]} Rbc6 {[%emt 0:00:30]} 37. Rd7 {[%emt 0:01:30]} Qf8 {[%emt 0:00:30]} 38. Qe5 {[%emt 0:01:30]} Ne6 {[%emt 0:05:58]} 39. Qxd5 {[%emt 0:01:30]} 1-0

[Event "10th Cesme Open-A 2024"]
[Site "Cesme"]
[Date "2024.06.24"]
[Round "2"]
[White "Samani, Yamac"]
[Black "Ozdemir, Serhan Berat"]
[Result "1/2-1/2"]
[ECO "E95"]
[WhiteElo "2360"]
[BlackElo "2225"]
[Annotator "RC"]
[PlyCount "163"]
[EventDate "2024.06.23"]
[EventType "swiss"]
[EventCountry "TUR"]
[SourceTitle "playchess.com"]
[Source "ChessBase"]
[SourceQuality "1"]
[TimeControl "5400+30"]

1. d4 {[%emt 0:01:00]} Nf6 {[%emt 0:01:00]} 2. c4 {[%emt 0:01:30]} g6 {[%emt 0:00:30]} 3. Nc3 {[%emt 0:00:30]} Bg7 {[%emt 0:00:30]} 4. e4 {[%emt 0:00:30]} d6 {[%emt 0:00:00]} 5. Be2 {[%emt 0:00:30]} O-O {[%emt 0:01:00]} 6. Nf3 {[%emt 0:01:30]} Na6 {[%emt 0:03:30]} 7. O-O {[%emt 0:01:30]} e5 {[%emt 0:03:30]} 8. Re1 {[%emt 0:00:30]} exd4 {[%emt 0:04:30]} 9. Nxd4 {[%emt 0:00:30]} Re8 {[%emt 0:01:30]} 10. Bf1 {[%emt 0:07:30]} Nc5 {[%emt 0:02:30]} 11. f3 {[%emt 0:01:30]} c6 {[%emt 0:01:30]} 12. Be3 {[%emt 0:05:30]} Qe7 {[%emt 0:07:30]} 13. Qd2 {[%emt 0:02:30]} Nfd7 {[%emt 0:27:30]} 14. Rad1 {[%emt 0:05:30]} Ne5 {[%emt 0:04:30]} 15. h3 {[%emt 0:11:30]} Ne6 {[%emt 0:04:30]} 16. f4 {[%emt 0:07:30]} Nxd4 {[%emt 0:00:30]} 17. Bxd4 {[%emt 0:00:30]} c5 {[%emt 0:00:30]} 18. Nd5 {[%emt 0:22:30]} Qd8 {[%emt 0:00:30]} 19. Bc3 {[%emt 0:01:30]} Nc6 {[%emt 0:00:30]} 20. Bxg7 {[%emt 0:01:30]} Kxg7 {[%emt 0:00:00]} 21. f5 {[%emt 0:03:30]} f6 {[%emt 0:00:00]} 22. Re3 {[%emt 0:02:30]} Nd4 {[%emt 0:03:30]} 23. Rg3 {[%emt 0:00:30]} g5 {[%emt 0:05:30]} 24. h4 {[%emt 0:00:58]} h6 {[%emt 0:00:30]} 25. Bd3 {[%emt 0:02:11]} Bd7 {[%emt 0:06:30]} 26. Rf1 {[%emt 0:04:58]} Rg8 {[%emt 0:01:30]} 27. Nf4 {[%emt 0:04:47]} Be8 {[%emt 0:01:33]} 28. hxg5 {[%emt 0:01:11]} hxg5 {[%emt 0:00:11]} 29. Qc3 {[%emt 0:00:37]} Bf7 {[%emt 0:01:41]} 30. Ne2 {[%emt 0:00:26]} Kf8 {[%emt 0:03:15]} 31. Nxd4 {[%emt 0:01:41]} cxd4 {[%emt 0:00:30]} 32. Qxd4 {[%emt 0:00:30]} Qb6 {[%emt 0:00:00]} 33. Qxb6 {[%emt 0:00:01]} axb6 {[%emt 0:00:23]} 34. a3 {[%emt 0:00:11]} Rh8 {[%emt 0:00:15]} 35. Rc1 {[%emt 0:01:42]} Rh4 {[%emt 0:01:52]} 36. Rc3 {[%emt 0:00:09]} Rc8 {[%emt 0:00:53]} 37. Rh3 {[%emt 0:01:37]} Rxh3 {[%emt 0:01:20]} 38. gxh3 {[%emt 0:00:01]} Ke7 {[%emt 0:00:30]} 39. Rb3 {[%emt 0:00:30]} Rc6 {[%emt 0:00:00]} 40. Rb4 {[%emt 0:00:10]} Kd7 {[%emt 0:01:06]} 41. Kf2 {[%emt 0:00:12]} Kc7 {[%emt 0:00:11]} 42. Ke3 {[%emt 0:00:30]} Rc5 {[%emt 0:00:12]} 43. Ra4 {[%emt 0:01:58]} Kb8 {[%emt 0:00:21]} 44. Rb4 {[%emt 0:01:04]} Kc7 {[%emt 0:00:30]} 45. Kd4 {[%emt 0:00:11]} Ra5 {[%emt 0:00:14]} 46. Rb3 {[%emt 0:00:33]} Ra8 {[%emt 0:00:20]} 47. Rc3 {[%emt 0:00:14]} Be8 {[%emt 0:00:41]} 48. b4 {[%emt 0:00:30]} Rd8 {[%emt 0:00:00]} 49. Bc2 {[%emt 0:00:34]} Bc6 {[%emt 0:00:16]} 50. Bd1 {[%emt 0:01:22]} Re8 {[%emt 0:00:22]} 51. Re3 {[%emt 0:00:30]} Rh8 {[%emt 0:00:34]} 52. Bg4 {[%emt 0:00:06]} Re8 {[%emt 0:01:07]} 53. Bh5 {[%emt 0:00:30]} Re7 {[%emt 0:00:00]} 54. Bg6 {[%emt 0:00:55]} Rg7 {[%emt 0:02:11]} 55. h4 {[%emt 0:00:40]} gxh4 {[%emt 0:00:35]} 56. Rh3 {[%emt 0:00:05]} Re7 {[%emt 0:03:10]} 57. Rxh4 {[%emt 0:00:05]} b5 {[%emt 0:00:31]} 58. cxb5 {[%emt 0:02:14]} Bxb5 {[%emt 0:00:31]} 59. Bh7 {[%emt 0:00:30]} Re8 {[%emt 0:00:30]} 60. Rg4 {[%emt 0:00:30]} Bc6 {[%emt 0:00:30]} 61. Bg8 {[%emt 0:00:30]} Re5 {[%emt 0:01:16]} 62. Bc4 {[%emt 0:00:56]} Kb6 {[%emt 0:00:30]} 63. Bd3 {[%emt 0:00:30]} d5 {[%emt 0:00:00]} 64. exd5 {[%emt 0:00:42]} Rxd5+ {[%emt 0:00:06]} 65. Kc3 {[%emt 0:00:30]} Rd8 {[%emt 0:00:30]} 66. Rg6 {[%emt 0:00:21]} Rd6 {[%emt 0:03:19]} 67. Bc2 {[%emt 0:01:13]} Bd7 {[%emt 0:00:30]} 68. a4 {[%emt 0:00:30]} Rc6+ {[%emt 0:00:00]} 69. Kb3 {[%emt 0:00:04]} Rxc2 {[%emt 0:00:20]} 70. Rxf6+ {[%emt 0:00:30]} Rc6 {[%emt 0:00:00]} 71. Rxc6+ {[%emt 0:02:00]} Kxc6 {[%emt 0:00:07]} 72. f6 {[%emt 0:00:08]} Be6+ {[%emt 0:01:13]} 73. Kc3 {[%emt 0:00:30]} Kd5 {[%emt 0:00:00]} 74. a5 {[%emt 0:00:03]} Kc6 {[%emt 0:04:08]} 75. Kb2 {[%emt 0:01:42]} Bg8 {[%emt 0:00:30]} 76. Kc3 {[%emt 0:00:30]} Kb5 {[%emt 0:00:30]} 77. Kb2 {[%emt 0:00:00]} Bf7 {[%emt 0:01:57]} 78. Kc3 {[%emt 0:00:10]} Be8 {[%emt 0:00:25]} 79. Kb2 {[%emt 0:00:21]} Bf7 {[%emt 0:00:33]} 80. Kc3 {[%emt 0:00:13]} Bc4 {[%emt 0:03:34]} 81. Kb2 {[%emt 0:00:21]} Kxb4 {[%emt 0:01:27]} 82. a6 {[%emt 0:00:17]} 1/2-1/2

[Event "10th Cesme Open-A 2024"]
[Site "Cesme"]
[Date "2024.06.24"]
[Round "2"]
[White "Schekachikhin, Maksim"]
[Black "Maruflu, Enes Yusuf"]
[Result "1/2-1/2"]
[ECO "D35"]
[WhiteElo "2343"]
[BlackElo "2141"]
[Annotator "RC"]
[PlyCount "125"]
[EventDate "2024.06.23"]
[EventType "swiss"]
[EventCountry "TUR"]
[SourceTitle "playchess.com"]
[Source "ChessBase"]
[SourceQuality "1"]
[TimeControl "5400+30"]

1. d4 {[%emt 0:01:00]} Nf6 {[%emt 0:01:00]} 2. c4 {[%emt 0:00:30]} e6 {[%emt 0:00:30]} 3. Nc3 {[%emt 0:00:30]} d5 {[%emt 0:00:00]} 4. cxd5 {[%emt 0:00:00]} exd5 {[%emt 0:00:00]} 5. Bg5 {[%emt 0:00:00]} c6 {[%emt 0:00:30]} 6. e3 {[%emt 0:00:00]} Bf5 {[%emt 0:00:00]} 7. Qf3 {[%emt 0:12:00]} Bg6 {[%emt 0:00:00]} 8. Bxf6 {[%emt 0:00:30]} Qxf6 {[%emt 0:00:30]} 9. Qxf6 {[%emt 0:00:00]} gxf6 {[%emt 0:00:30]} 10. Nf3 {[%emt 0:00:00]} Nd7 {[%emt 0:00:30]} 11. Nh4 {[%emt 0:06:30]} Be7 {[%emt 0:00:00]} 12. g3 {[%emt 0:02:30]} a5 {[%emt 0:03:00]} 13. Bh3 {[%emt 0:07:30]} Nb6 {[%emt 0:02:30]} 14. Ke2 {[%emt 0:05:30]} Bb4 {[%emt 0:04:30]} 15. Rhc1 {[%emt 0:07:30]} a4 {[%emt 0:04:30]} 16. Nf5 {[%emt 0:11:30]} Bxc3 {[%emt 0:11:30]} 17. Rxc3 {[%emt 0:06:30]} Nc4 {[%emt 0:06:30]} 18. Rc2 {[%emt 0:01:30]} Ra6 {[%emt 0:03:30]} 19. Kd1 {[%emt 0:10:30]} Kd8 {[%emt 0:03:30]} 20. Kc1 {[%emt 0:03:30]} Kc7 {[%emt 0:01:30]} 21. Rc3 {[%emt 0:03:30]} Rha8 {[%emt 0:04:30]} 22. a3 {[%emt 0:03:33]} Rb6 {[%emt 0:01:30]} 23. Ra2 {[%emt 0:02:57]} Ra5 {[%emt 0:03:30]} 24. Nh4 {[%emt 0:00:21]} Nd6 {[%emt 0:15:30]} 25. Bf1 {[%emt 0:00:54]} Ne4 {[%emt 0:03:30]} 26. Rc2 {[%emt 0:00:22]} Rb3 {[%emt 0:01:30]} 27. Ra1 {[%emt 0:03:05]} Nd6 {[%emt 0:04:30]} 28. Rd2 {[%emt 0:03:17]} Be4 {[%emt 0:03:30]} 29. f3 {[%emt 0:07:26]} Bg6 {[%emt 0:00:30]} 30. Nxg6 {[%emt 0:00:37]} hxg6 {[%emt 0:00:30]} 31. Bd3 {[%emt 0:00:19]} f5 {[%emt 0:04:26]} 32. Kd1 {[%emt 0:00:35]} Nc4 {[%emt 0:01:13]} 33. Bxc4 {[%emt 0:00:30]} dxc4 {[%emt 0:00:30]} 34. Ke2 {[%emt 0:00:00]} Ra8 {[%emt 0:05:21]} 35. Rc1 {[%emt 0:01:11]} Rh8 {[%emt 0:00:30]} 36. h4 {[%emt 0:00:05]} g5 {[%emt 0:03:25]} 37. Rxc4 {[%emt 0:01:19]} gxh4 {[%emt 0:00:35]} 38. gxh4 {[%emt 0:00:06]} Rxh4 {[%emt 0:01:56]} 39. Rxa4 {[%emt 0:00:13]} f4 {[%emt 0:03:18]} 40. exf4 {[%emt 0:00:56]} Rxf4 {[%emt 0:04:27]} 41. Rc4 {[%emt 0:00:51]} Rbxf3 {[%emt 0:00:47]} 42. Kd1 {[%emt 0:00:30]} Kd6 {[%emt 0:00:13]} 43. Rb4 {[%emt 0:00:11]} b5 {[%emt 0:00:53]} 44. a4 {[%emt 0:00:30]} bxa4 {[%emt 0:00:30]} 45. Rxa4 {[%emt 0:00:00]} Rf2 {[%emt 0:00:16]} 46. Rc4 {[%emt 0:00:54]} R4f3 {[%emt 0:00:35]} 47. Rc5 {[%emt 0:00:52]} Rf4 {[%emt 0:00:30]} 48. Rc4 {[%emt 0:00:30]} Rf6 {[%emt 0:00:30]} 49. Rc5 {[%emt 0:00:30]} R2f4 {[%emt 0:00:30]} 50. b4 {[%emt 0:00:30]} R6f5 {[%emt 0:00:30]} 51. Kc2 {[%emt 0:00:30]} Rf3 {[%emt 0:00:21]} 52. Rxf5 {[%emt 0:01:25]} Rxf5 {[%emt 0:00:02]} 53. Kd3 {[%emt 0:00:21]} Kd5 {[%emt 0:00:27]} 54. Rc2 {[%emt 0:00:13]} Rf3+ {[%emt 0:00:25]} 55. Ke2 {[%emt 0:00:03]} Rb3 {[%emt 0:00:27]} 56. Rc5+ {[%emt 0:00:07]} Kd6 {[%emt 0:00:30]} 57. Rf5 {[%emt 0:01:39]} Rxb4 {[%emt 0:01:14]} 58. Kd3 {[%emt 0:00:26]} Rb7 {[%emt 0:00:29]} 59. Kc4 {[%emt 0:00:39]} Rd7 {[%emt 0:00:27]} 60. Rf6+ {[%emt 0:00:41]} Kc7 {[%emt 0:00:30]} 61. Kc5 {[%emt 0:00:30]} Rd5+ {[%emt 0:00:00]} 62. Kc4 {[%emt 0:00:00]} Rd7 {[%emt 0:00:25]} 63. Kc5 {[%emt 0:00:00]} 1/2-1/2

[Event "10th Cesme Open-A 2024"]
[Site "Cesme"]
[Date "2024.06.24"]
[Round "2"]
[White "Ebrahimi Herab, Hamidreza"]
[Black "Demirtas, Alper"]
[Result "1-0"]
[ECO "E46"]
[WhiteElo "2333"]
[BlackElo "2057"]
[Annotator "RC"]
[PlyCount "189"]
[EventDate "2024.06.23"]
[EventType "swiss"]
[EventCountry "TUR"]
[SourceTitle "playchess.com"]
[Source "ChessBase"]
[SourceQuality "1"]
[TimeControl "5400+30"]

1. d4 {[%emt 0:01:00]} Nf6 {[%emt 0:01:00]} 2. c4 {[%emt 0:00:30]} e6 {[%emt 0:00:30]} 3. Nc3 {[%emt 0:00:30]} Bb4 {[%emt 0:00:00]} 4. Bd2 {[%emt 0:01:30]} O-O {[%emt 0:03:00]} 5. e3 {[%emt 0:03:30]} d5 {[%emt 0:03:30]} 6. cxd5 {[%emt 0:01:30]} exd5 {[%emt 0:01:30]} 7. Bd3 {[%emt 0:01:30]} Nbd7 {[%emt 0:03:30]} 8. Nf3 {[%emt 0:02:30]} Qe7 {[%emt 0:01:30]} 9. O-O {[%emt 0:01:30]} c6 {[%emt 0:05:30]} 10. Qc2 {[%emt 0:05:30]} Re8 {[%emt 0:02:30]} 11. Rae1 {[%emt 0:01:30]} Bxc3 {[%emt 0:09:30]} 12. Bxc3 {[%emt 0:00:30]} Ne4 {[%emt 0:04:30]} 13. Nd2 {[%emt 0:05:30]} Nf8 {[%emt 0:05:30]} 14. f3 {[%emt 0:01:30]} Nxc3 {[%emt 0:01:30]} 15. bxc3 {[%emt 0:00:30]} Qg5 {[%emt 0:06:30]} 16. f4 {[%emt 0:05:30]} Qh6 {[%emt 0:04:30]} 17. e4 {[%emt 0:04:30]} dxe4 {[%emt 0:00:30]} 18. Bxe4 {[%emt 0:02:30]} Be6 {[%emt 0:04:30]} 19. f5 {[%emt 0:10:30]} Bd5 {[%emt 0:01:30]} 20. c4 {[%emt 0:00:30]} Bxe4 {[%emt 0:02:30]} 21. Nxe4 {[%emt 0:01:30]} Nd7 {[%emt 0:03:30]} 22. c5 {[%emt 0:07:30]} Nf6 {[%emt 0:19:23]} 23. Nd6 {[%emt 0:04:30]} Rxe1 {[%emt 0:02:08]} 24. Rxe1 {[%emt 0:00:30]} b6 {[%emt 0:00:41]} 25. h3 {[%emt 0:06:30]} Qf4 {[%emt 0:02:57]} 26. Qc4 {[%emt 0:01:30]} Rf8 {[%emt 0:01:33]} 27. Qd3 {[%emt 0:07:30]} bxc5 {[%emt 0:02:28]} 28. dxc5 {[%emt 0:00:00]} Qb4 {[%emt 0:02:39]} 29. Qe3 {[%emt 0:00:00]} Nd5 {[%emt 0:02:29]} 30. Qf2 {[%emt 0:00:30]} h6 {[%emt 0:01:13]} 31. Kh2 {[%emt 0:00:30]} Qc3 {[%emt 0:01:12]} 32. Re4 {[%emt 0:01:30]} a5 {[%emt 0:00:47]} 33. Qg3 {[%emt 0:02:46]} Qxg3+ {[%emt 0:01:43]} 34. Kxg3 {[%emt 0:00:14]} Nc3 {[%emt 0:00:28]} 35. Rc4 {[%emt 0:00:32]} Nxa2 {[%emt 0:00:34]} 36. Ra4 {[%emt 0:00:28]} Nc1 {[%emt 0:00:30]} 37. Ra3 {[%emt 0:01:44]} Rb8 {[%emt 0:00:38]} 38. Rxa5 {[%emt 0:00:15]} Nb3 {[%emt 0:00:30]} 39. Ra7 {[%emt 0:00:00]} Nxc5 {[%emt 0:00:33]} 40. Nxf7 {[%emt 0:00:44]} Rb7 {[%emt 0:00:30]} 41. Rxb7 {[%emt 0:00:30]} Nxb7 {[%emt 0:00:30]} 42. Ne5 {[%emt 0:00:30]} c5 {[%emt 0:00:30]} 43. Nc4 {[%emt 0:00:30]} Kf7 {[%emt 0:00:30]} 44. Kf4 {[%emt 0:00:30]} Kf6 {[%emt 0:00:30]} 45. Ke4 {[%emt 0:00:30]} h5 {[%emt 0:00:30]} 46. Kf4 {[%emt 0:00:30]} g6 {[%emt 0:00:30]} 47. fxg6 {[%emt 0:00:30]} Kxg6 {[%emt 0:00:30]} 48. Ke5 {[%emt 0:00:30]} Kg5 {[%emt 0:00:30]} 49. Nd2 {[%emt 0:00:30]} c4 {[%emt 0:00:30]} 50. Nxc4 {[%emt 0:00:30]} Nc5 {[%emt 0:00:30]} 51. Nd2 {[%emt 0:00:30]} Nd3+ {[%emt 0:00:30]} 52. Ke4 {[%emt 0:00:30]} Nf2+ {[%emt 0:00:30]} 53. Kf3 {[%emt 0:00:30]} Nd3 {[%emt 0:00:30]} 54. Ke3 {[%emt 0:00:30]} Nb4 {[%emt 0:00:30]} 55. Ke4 {[%emt 0:00:30]} Nc2 {[%emt 0:00:30]} 56. Nf3+ {[%emt 0:00:30]} Kg6 {[%emt 0:00:30]} 57. Nd4 {[%emt 0:00:30]} Nb4 {[%emt 0:00:30]} 58. g3 {[%emt 0:00:30]} Kg5 {[%emt 0:00:30]} 59. Nf3+ {[%emt 0:00:30]} Kf6 {[%emt 0:00:30]} 60. Ne5 {[%emt 0:00:30]} Nc2 {[%emt 0:00:30]} 61. Nc6 {[%emt 0:00:30]} Kg5 {[%emt 0:00:30]} 62. Kd3 {[%emt 0:00:30]} Ne1+ {[%emt 0:00:30]} 63. Kd2 {[%emt 0:00:30]} Nf3+ {[%emt 0:00:30]} 64. Ke3 {[%emt 0:00:30]} Ne1 {[%emt 0:00:30]} 65. Nd4 {[%emt 0:00:30]} h4 {[%emt 0:00:30]} 66. g4 {[%emt 0:00:30]} Ng2+ {[%emt 0:00:30]} 67. Ke4 {[%emt 0:00:30]} Kg6 {[%emt 0:00:30]} 68. Ne2 {[%emt 0:00:30]} Kg5 {[%emt 0:00:30]} 69. Ng1 {[%emt 0:00:30]} Kg6 {[%emt 0:00:05]} 70. Kf3 {[%emt 0:00:00]} Ne1+ {[%emt 0:00:01]} 71. Kf2 {[%emt 0:00:17]} Nd3+ {[%emt 0:00:30]} 72. Ke3 {[%emt 0:00:00]} Ne1 {[%emt 0:01:12]} 73. Nf3 {[%emt 0:00:00]} Ng2+ {[%emt 0:00:30]} 74. Kf2 {[%emt 0:00:30]} Nf4 {[%emt 0:00:30]} 75. Nxh4+ {[%emt 0:00:30]} Kf6 {[%emt 0:00:30]} 76. Kg3 {[%emt 0:00:30]} Ne2+ {[%emt 0:00:30]} 77. Kf3 {[%emt 0:00:30]} Ng1+ {[%emt 0:00:30]} 78. Kg2 {[%emt 0:00:30]} Ne2 {[%emt 0:00:30]} 79. Nf3 {[%emt 0:00:30]} Nf4+ {[%emt 0:00:30]} 80. Kg3 {[%emt 0:00:30]} Ne2+ {[%emt 0:00:30]} 81. Kf2 {[%emt 0:00:30]} Nf4 {[%emt 0:00:30]} 82. h4 {[%emt 0:00:30]} Ke6 {[%emt 0:00:30]} 83. Ke3 {[%emt 0:00:30]} Nd5+ {[%emt 0:00:30]} 84. Ke4 {[%emt 0:00:30]} Nc3+ {[%emt 0:00:30]} 85. Kf4 {[%emt 0:00:30]} Kf6 {[%emt 0:00:30]} 86. g5+ {[%emt 0:00:30]} Kg6 {[%emt 0:00:30]} 87. Kg4 {[%emt 0:00:30]} Nd5 {[%emt 0:00:00]} 88. h5+ {[%emt 0:00:00]} Kg7 {[%emt 0:00:00]} 89. h6+ {[%emt 0:00:00]} Kh7 {[%emt 0:00:00]} 90. Ne5 {[%emt 0:00:00]} Ne7 {[%emt 0:00:00]} 91. Kh5 {[%emt 0:00:00]} Nf5 {[%emt 0:00:00]} 92. g6+ {[%emt 0:00:00]} Kg8 {[%emt 0:00:00]} 93. h7+ {[%emt 0:00:00]} Kg7 {[%emt 0:00:00]} 94. Nf7 {[%emt 0:00:00]} Ng3+ {[%emt 0:00:00]} 95. Kg4 {[%emt 0:00:00]} 1-0

[Event "10th Cesme Open-A 2024"]
[Site "Cesme"]
[Date "2024.06.24"]
[Round "2"]
[White "Bicer, Atakan Mert"]
[Black "Portakalci, Yusuf"]
[Result "1-0"]
[ECO "C10"]
[WhiteElo "2313"]
[BlackElo "2034"]
[Annotator "RC"]
[PlyCount "73"]
[EventDate "2024.06.23"]
[EventType "swiss"]
[EventCountry "TUR"]
[SourceTitle "playchess.com"]
[Source "ChessBase"]
[SourceQuality "1"]
[TimeControl "5400+30"]

1. e4 {[%emt 0:01:00]} e6 {[%emt 0:01:00]} 2. d4 {[%emt 0:00:30]} d5 {[%emt 0:00:30]} 3. Nd2 {[%emt 0:00:00]} dxe4 {[%emt 0:00:30]} 4. Nxe4 {[%emt 0:00:00]} Nd7 {[%emt 0:00:00]} 5. Nf3 {[%emt 0:02:30]} Ngf6 {[%emt 0:01:00]} 6. Nxf6+ {[%emt 0:08:30]} Nxf6 {[%emt 0:00:30]} 7. Be3 {[%emt 0:00:30]} Be7 {[%emt 0:02:30]} 8. Qd2 {[%emt 0:00:00]} Nd5 {[%emt 0:06:30]} 9. O-O-O {[%emt 0:01:00]} Bd7 {[%emt 0:06:30]} 10. Kb1 {[%emt 0:05:30]} Bf6 {[%emt 0:02:30]} 11. c4 {[%emt 0:17:30]} Nb6 {[%emt 0:08:30]} 12. Bd3 {[%emt 0:09:30]} Qe7 {[%emt 0:14:30]} 13. Qa5 {[%emt 0:03:30]} Na4 {[%emt 0:29:30]} 14. b3 {[%emt 0:05:30]} Nb6 {[%emt 0:03:57]} 15. Bc1 {[%emt 0:06:30]} Qd8 {[%emt 0:10:19]} 16. h4 {[%emt 0:04:30]} c6 {[%emt 0:01:32]} 17. g4 {[%emt 0:11:30]} Qc7 {[%emt 0:02:33]} 18. Ne5 {[%emt 0:01:57]} Nd5 {[%emt 0:06:31]} 19. Qe1 {[%emt 0:02:00]} Bxe5 {[%emt 0:00:27]} 20. dxe5 {[%emt 0:06:44]} Nb6 {[%emt 0:00:08]} 21. Ba3 {[%emt 0:01:03]} c5 {[%emt 0:00:36]} 22. Qe3 {[%emt 0:00:16]} O-O-O {[%emt 0:00:54]} 23. Bxc5 {[%emt 0:00:37]} Bc6 {[%emt 0:00:30]} 24. Bd6 {[%emt 0:00:00]} Qd7 {[%emt 0:00:25]} 25. Rhe1 {[%emt 0:00:14]} f6 {[%emt 0:00:38]} 26. f4 {[%emt 0:00:06]} h5 {[%emt 0:00:48]} 27. Qc5 {[%emt 0:00:44]} hxg4 {[%emt 0:00:10]} 28. Qa5 {[%emt 0:00:30]} Na8 {[%emt 0:00:00]} 29. Qxa7 {[%emt 0:00:24]} Nc7 {[%emt 0:00:08]} 30. b4 {[%emt 0:03:27]} Bf3 {[%emt 0:00:05]} 31. b5 {[%emt 0:00:26]} Qf7 {[%emt 0:01:03]} 32. Bc2 {[%emt 0:01:03]} fxe5 {[%emt 0:01:01]} 33. fxe5 {[%emt 0:00:29]} b6 {[%emt 0:00:46]} 34. c5 {[%emt 0:00:42]} Qd7 {[%emt 0:00:27]} 35. cxb6 {[%emt 0:01:30]} Qxb5+ {[%emt 0:00:33]} 36. Bb3 {[%emt 0:00:29]} Na6 {[%emt 0:00:24]} 37. Rc1+ {[%emt 0:00:22]} 1-0

[Event "10th Cesme Open-A 2024"]
[Site "Cesme"]
[Date "2024.06.24"]
[Round "2"]
[White "Taspinar, Yanki"]
[Black "Aliyev, Elnur"]
[Result "1-0"]
[ECO "E46"]
[WhiteElo "2309"]
[BlackElo "2073"]
[Annotator "RC"]
[PlyCount "117"]
[EventDate "2024.06.23"]
[EventType "swiss"]
[EventCountry "TUR"]
[SourceTitle "playchess.com"]
[Source "ChessBase"]
[SourceQuality "1"]
[TimeControl "5400+30"]

1. d4 {[%emt 0:04:00]} Nf6 {[%emt 0:01:00]} 2. c4 {[%emt 0:00:30]} e6 {[%emt 0:00:00]} 3. Nc3 {[%emt 0:00:00]} Bb4 {[%emt 0:00:00]} 4. e3 {[%emt 0:00:00]} O-O {[%emt 0:00:30]} 5. Bd2 {[%emt 0:00:00]} Re8 {[%emt 0:02:30]} 6. a3 {[%emt 0:01:00]} Bf8 {[%emt 0:00:30]} 7. e4 {[%emt 0:08:30]} e5 {[%emt 0:06:30]} 8. d5 {[%emt 0:04:30]} Bc5 {[%emt 0:03:30]} 9. Bd3 {[%emt 0:05:30]} d6 {[%emt 0:03:30]} 10. h3 {[%emt 0:02:30]} Nbd7 {[%emt 0:02:30]} 11. Nf3 {[%emt 0:05:30]} Nf8 {[%emt 0:05:30]} 12. Ne2 {[%emt 0:13:30]} c6 {[%emt 0:13:30]} 13. O-O {[%emt 0:10:30]} Nh5 {[%emt 0:07:30]} 14. b4 {[%emt 0:04:30]} Bb6 {[%emt 0:01:30]} 15. Qc1 {[%emt 0:09:30]} cxd5 {[%emt 0:03:30]} 16. cxd5 {[%emt 0:00:30]} f5 {[%emt 0:03:30]} 17. Bb5 {[%emt 0:05:30]} fxe4 {[%emt 0:16:30]} 18. Bg5 {[%emt 0:04:00]} exf3 {[%emt 0:07:30]} 19. Bxd8 {[%emt 0:01:38]} Rxd8 {[%emt 0:00:00]} 20. gxf3 {[%emt 0:01:58]} Ng6 {[%emt 0:01:00]} 21. Bd3 {[%emt 0:14:23]} Ngf4 {[%emt 0:02:06]} 22. Nxf4 {[%emt 0:00:49]} Nxf4 {[%emt 0:00:30]} 23. Qb1 {[%emt 0:00:10]} Rf8 {[%emt 0:02:53]} 24. h4 {[%emt 0:02:23]} Rf6 {[%emt 0:01:01]} 25. Rc1 {[%emt 0:00:41]} Bh3 {[%emt 0:01:36]} 26. Rc4 {[%emt 0:00:47]} Bd4 {[%emt 0:07:56]} 27. Ra2 {[%emt 0:00:37]} Raf8 {[%emt 0:00:17]} 28. Bf1 {[%emt 0:00:32]} Rg6+ {[%emt 0:06:37]} 29. Kh2 {[%emt 0:00:08]} Bxf1 {[%emt 0:00:47]} 30. Qxf1 {[%emt 0:00:30]} Rh6 {[%emt 0:00:00]} 31. Qc1 {[%emt 0:00:45]} Rxh4+ {[%emt 0:00:00]} 32. Kg1 {[%emt 0:00:14]} Nd3 {[%emt 0:00:52]} 33. Qg5 {[%emt 0:00:50]} Rh6 {[%emt 0:01:18]} 34. Qe7 {[%emt 0:00:20]} Rg6+ {[%emt 0:00:33]} 35. Kf1 {[%emt 0:00:07]} Bb6 {[%emt 0:00:32]} 36. Rg4 {[%emt 0:00:37]} Rxg4 {[%emt 0:00:30]} 37. Qe6+ {[%emt 0:00:04]} Kh8 {[%emt 0:00:18]} 38. Qxg4 {[%emt 0:00:23]} Nf4 {[%emt 0:01:05]} 39. Rc2 {[%emt 0:00:18]} h5 {[%emt 0:00:06]} 40. Qd7 {[%emt 0:00:30]} Rf6 {[%emt 0:00:28]} 41. Rc8+ {[%emt 0:00:25]} Kh7 {[%emt 0:00:30]} 42. Qe8 {[%emt 0:00:00]} Ng6 {[%emt 0:00:04]} 43. Qg8+ {[%emt 0:01:14]} Kh6 {[%emt 0:00:00]} 44. Rb8 {[%emt 0:01:20]} Rxf3 {[%emt 0:01:21]} 45. Rxb7 {[%emt 0:00:30]} Rxf2+ {[%emt 0:00:30]} 46. Ke1 {[%emt 0:00:00]} Rf6 {[%emt 0:00:28]} 47. Qxg7+ {[%emt 0:00:19]} Kg5 {[%emt 0:00:30]} 48. Re7 {[%emt 0:00:30]} h4 {[%emt 0:00:30]} 49. Re6 {[%emt 0:00:30]} Rxe6 {[%emt 0:00:30]} 50. dxe6 {[%emt 0:00:30]} Bd8 {[%emt 0:00:30]} 51. Qxa7 {[%emt 0:00:30]} h3 {[%emt 0:00:30]} 52. Qh7 {[%emt 0:00:00]} Nf4 {[%emt 0:00:47]} 53. Qg8+ {[%emt 0:00:28]} Kh4 {[%emt 0:00:30]} 54. Qxd8+ {[%emt 0:00:30]} Kg3 {[%emt 0:00:30]} 55. Qg5+ {[%emt 0:00:30]} Kf3 {[%emt 0:00:30]} 56. Qh6 {[%emt 0:01:10]} e4 {[%emt 0:00:26]} 57. e7 {[%emt 0:00:30]} Ng2+ {[%emt 0:00:55]} 58. Kd1 {[%emt 0:00:30]} e3 {[%emt 0:00:30]} 59. e8=Q {[%emt 0:00:00]} 1-0